fUST/lending_fUST_20250713
["ID","MTS","AMOUNT","RATE_DAILY","PERIOD"]
[371642757,1752377433750,-460.0,0.00019888,2]
[371642758,1752377433760,-460.0,0.00019888,2]
[371642759,1752377433770,-460.0,0.00019888,2]
[371642760,1752377433780,-460.0,0.00019888,2]
[371642761,1752377433790,-460.0,0.00019888,2]
[371642762,1752377433799,-460.76726108,0.00019888,2]
[371642763,1752377433809,-460.0,0.00019888,2]
[371642764,1752377433818,-588.91156502,0.00019888,2]
[371642765,1752377433829,-501.12255255,0.00019888,2]
[371642766,1752377433838,-460.0,0.00019888,2]
[371642767,1752377433848,-460.0,0.00019888,2]
[371642768,1752377433857,-460.0,0.00019888,2]
[371642769,1752377433867,-419.82431822,0.00019888,2]
[371642770,1752377433877,-484.95662827,0.00019888,2]
[371642771,1752377433888,-460.0,0.00019888,2]
[371642772,1752377433901,-460.0,0.00019888,2]
[371642773,1752377433911,-460.0,0.00019888,2]
[371642774,1752377433922,-460.0,0.00019888,2]
[371642775,1752377433932,-461.83940448,0.00019888,2]
[371642776,1752377433943,-502.94281649,0.00019888,2]
[371642777,1752377433953,-460.0,0.00019888,2]
[371642778,1752377433964,-460.0,0.00019888,2]
[371642779,1752377433975,-460.0,0.00019888,2]
[371642780,1752377433985,-460.0,0.00019888,2]
[371642781,1752377433995,-460.0,0.00019888,2]
[371642782,1752377434005,-460.0,0.00019888,2]
[371642783,1752377434015,-525.95199832,0.00019888,2]
[371642784,1752377434025,-430.83955849,0.00019888,2]
[371642785,1752377434035,-460.0,0.00019888,2]
[371642786,1752377434046,-460.0,0.00019888,2]
[371642787,1752377434056,-460.0,0.00019888,2]
[371642788,1752377434065,-462.85288859,0.00019888,2]
[371642789,1752377434075,-469.94770832,0.00019888,2]
[371642790,1752377434085,-460.0,0.00019888,2]
[371642791,1752377434095,-460.0,0.00019888,2]
[371642792,1752377434104,-460.0,0.00019888,2]
[371642793,1752377434114,-460.0,0.00019888,2]
[371642794,1752377434124,-462.18498417,0.00019889,2]
[371642795,1752377434133,-460.0,0.00019889,2]
[371642796,1752377434143,-478.26589259,0.00019889,2]
[371642797,1752377434153,-461.67193249,0.00019889,2]
[371642798,1752377434162,-460.96736514,0.00019889,2]
[371642799,1752377434171,-460.0,0.00019889,2]
[371642800,1752377434181,-460.0,0.00019889,2]
[371642801,1752377434191,-467.14112684,0.00019889,2]
[371642802,1752377434202,-466.26199434,0.00019889,2]
[371642803,1752377434211,-460.0,0.00019889,2]
[371642804,1752377434221,-460.0,0.00019889,2]
[371642805,1752377434232,-460.0,0.00019889,2]
[371642806,1752377434241,-461.3016559,0.00019889,2]
[371642807,1752377434251,-460.0,0.00019889,2]
[371642808,1752377434260,-460.0,0.00019889,2]
[371642809,1752377434269,-460.0,0.00019889,2]
[371642810,1752377434279,-585.6030005,0.00019889,2]
[371642811,1752377434289,-460.0,0.00019889,2]
[371642812,1752377434299,-460.0,0.00019889,2]
[371642813,1752377434308,-460.0,0.00019889,2]
[371642814,1752377434318,-460.0,0.00019889,2]
[371642815,1752377434329,-466.42234293,0.00019889,2]
[371642816,1752377434339,-460.0,0.00019889,2]
[371642817,1752377434349,-460.0,0.00019889,2]
[371642818,1752377434358,-460.0,0.00019889,2]
[371642819,1752377434368,-460.0,0.00019889,2]
[371642820,1752377434378,-460.0,0.00019889,2]
[371642821,1752377434389,-460.0,0.00019889,2]
[371642822,1752377434398,-460.0,0.00019889,2]
[371642823,1752377434408,-460.0,0.00019889,2]
[371642824,1752377434418,-460.0,0.00019889,2]
[371642825,1752377434428,-460.0,0.00019889,2]
[371642826,1752377434437,-310.57765425,0.00019889,2]
[371642827,1752377434559,-149.42234575,0.00019889,2]
[371642828,1752377434569,-105.44765425,0.00019889,2]
[371642830,1752377438743,-3227.0147886,0.00019888,2]
[371642831,1752377438755,-597.4319247,0.00019888,2]
[371642833,1752377438767,-476.19132708,0.00019888,2]
[371642834,1752377438776,-63.65489228,0.00019888,2]
[371642835,1752377438789,-396.34510772,0.00019888,2]
[371642836,1752377438798,-276.55957114,0.00019888,2]
[371642838,1752377438822,-183.44042886,0.00019888,2]
[371642840,1752377438831,-460.0,0.00019888,2]
[371642842,1752377438841,-354.55234575,0.00019889,2]
[371642844,1752377438850,-403.42589891,0.00019889,2]
[371643001,1752377440511,-619.55,0.00019888,2]
[371643002,1752377440521,-52.22936835,0.00019889,2]
[371643003,1752377440565,-4.34473274,0.00019889,2]
[371643004,1752377440575,-310.74280116,0.00019889,2]
[371643005,1752377440586,-150.07187959,0.00019889,2]
[371643006,1752377440595,-460.0,0.00019889,2]
[371643007,1752377440605,-460.0,0.00019889,2]
[371643008,1752377440614,-460.0,0.00019889,2]
[371643010,1752377440623,-460.0,0.00019889,2]
[371643011,1752377440632,-460.0,0.00019889,2]
[371643012,1752377440641,-403.99717778,0.00019889,2]
[371643014,1752377440651,-460.0,0.00019889,2]
[371643016,1752377440660,-460.0,0.00019889,2]
[371643017,1752377440669,-460.0,0.00019889,2]
[371643018,1752377440678,-460.0,0.00019889,2]
[371643019,1752377440688,-510.49039337,0.00019889,2]
[371643020,1752377440697,-159.71963749,0.00019889,2]
[371643021,1752377440707,-460.0,0.00019889,2]
[371643022,1752377440716,-460.0,0.00019889,2]
[371643023,1752377440725,-460.0,0.00019889,2]
[371643024,1752377440734,-460.0,0.00019889,2]
[371643025,1752377440744,-460.0,0.00019889,2]
[371643026,1752377440754,-450.01535071,0.00019889,2]
[371643027,1752377440764,-516.99935436,0.00019889,2]
[371643028,1752377440773,-460.0,0.00019889,2]
[371643029,1752377440901,-460.0,0.00019889,2]
[371643030,1752377440912,-460.0,0.00019889,2]
[371643031,1752377440921,-460.0,0.00019889,2]
[371643032,1752377440931,-460.0,0.00019889,2]
[371643033,1752377440941,-461.11176583,0.00019889,2]
[371643035,1752377440950,-460.77544868,0.00019889,2]
[371643037,1752377440959,-460.0,0.00019889,2]
[371643039,1752377440968,-460.0,0.00019889,2]
[371643041,1752377440979,-460.0,0.00019889,2]
[371643042,1752377440988,-173.33276404,0.00019889,2]
[371643051,1752377443902,-460.0,0.00019888,2]
[371643052,1752377443912,-286.66723596,0.00019889,2]
[371643053,1752377443922,-460.0,0.00019889,2]
[371643054,1752377443931,-461.9502178,0.00019889,2]
[371643055,1752377443940,-460.0,0.00019889,2]
[371643056,1752377443950,-460.88263391,0.00019889,2]
[371643057,1752377443959,-250.47089379,0.00019889,2]
[371643066,1752377446813,-463.99172456,0.00019888,2]
[371643067,1752377446824,-460.0,0.00019888,2]
[371643068,1752377446833,-463.10825611,0.00019888,2]
[371643069,1752377446843,-209.52910621,0.00019889,2]
[371643070,1752377446854,-24.65208668,0.00019889,2]
[371643071,1752377446867,-351.59094771,0.00019889,2]
[371643072,1752377604514,260715.48590789,0.00027397,120]
[371643073,1752378003329,9193.736103,0.0001601,2]
[371643074,1752378003362,2365.263897,0.0001601,2]
[371643076,1752378411522,315.562406,0.00013699,2]
[371643125,1752378632819,-341.7892435,0.00018809,2]
[371643127,1752378632829,-294.8967145,0.00018859,2]
[371643129,1752378632839,-724.22658508,0.00019779,2]
[371643131,1752378632849,-460.0,0.00019785,2]
[371643133,1752378632859,-460.0,0.00019785,2]
[371643135,1752378632870,-300.0,0.00019785,2]
[371643138,1752378632880,-354.83557786,0.00019785,2]
[371643140,1752378632889,-460.0,0.00019785,2]
[371643142,1752378632899,-460.0,0.00019786,2]
[371643144,1752378632909,-460.0,0.00019786,2]
[371643147,1752378632918,-460.0,0.00019786,2]
[371643149,1752378632928,-460.0,0.00019786,2]
[371643151,1752378632937,-464.29987425,0.00019786,2]
[371643153,1752378632946,-464.22433556,0.00019786,2]
[371643155,1752378632956,-1006.04128985,0.00019786,2]
[371643158,1752378632966,-593.74,0.00019786,2]
[371643161,1752378632975,-462.48384019,0.00019786,2]
[371643164,1752378632984,-934.98,0.00019786,2]
[371643166,1752378632993,-332.23547338,0.00019786,2]
[371643168,1752378633003,-460.0,0.00019786,2]
[371643170,1752378633012,-460.0,0.00019786,2]
[371643172,1752378633022,-460.0,0.00019786,2]
[371643174,1752378633032,-460.0,0.00019786,2]
[371643176,1752378633043,-460.0,0.00019786,2]
[371643178,1752378633053,-462.82370838,0.00019786,2]
[371643180,1752378633063,-460.0,0.00019786,2]
[371643182,1752378633072,-460.0,0.00019786,2]
[371643184,1752378633082,-460.0,0.00019786,2]
[371643186,1752378633091,-462.90970961,0.00019786,2]
[371643188,1752378633100,-1164.48,0.00019786,2]
[371643190,1752378633110,-896.75,0.00019786,2]
[371643192,1752378633119,-460.0,0.00019786,2]
[371643194,1752378633129,-460.0,0.00019786,2]
[371643196,1752378633138,-460.0,0.00019786,2]
[371643198,1752378633148,-460.0,0.00019786,2]
[371643200,1752378633158,-456.8522062,0.00019786,2]
[371643202,1752378633167,-401.44924144,0.00019786,2]
[371643204,1752378633178,-460.0,0.00019786,2]
[371643206,1752378633187,-460.0,0.00019786,2]
[371643208,1752378633197,-460.0,0.00019786,2]
[371643210,1752378633207,-455.35306929,0.00019786,2]
[371643212,1752378633218,-460.0,0.00019786,2]
[371643214,1752378633229,-460.0,0.00019786,2]
[371643216,1752378633239,-469.6,0.00019786,2]
[371643218,1752378633249,-460.0,0.00019786,2]
[371643220,1752378633260,-460.0,0.00019786,2]
[371643222,1752378633270,-468.35187788,0.00019786,2]
[371643224,1752378633280,-463.00923969,0.00019786,2]
[371643226,1752378633291,-460.0,0.00019786,2]
[371643228,1752378633301,-460.0,0.00019786,2]
[371643230,1752378633311,-460.0,0.00019786,2]
[371643232,1752378633321,-460.0,0.00019786,2]
[371643234,1752378633331,-465.25369589,0.00019786,2]
[371643236,1752378633341,-469.90222305,0.00019786,2]
[371643238,1752378633351,-460.0,0.00019786,2]
[371643240,1752378633361,-460.0,0.00019786,2]
[371643242,1752378633370,-460.0,0.00019786,2]
[371643244,1752378633380,-460.0,0.00019786,2]
[371643246,1752378633390,-460.0,0.00019786,2]
[371643248,1752378633400,-460.0,0.00019786,2]
[371643251,1752378633410,-460.0,0.00019786,2]
[371643253,1752378633420,-460.0,0.00019786,2]
[371643254,1752378633430,-460.0,0.00019786,2]
[371643257,1752378633439,-460.0,0.00019786,2]
[371643258,1752378633453,-460.0,0.00019786,2]
[371643260,1752378633462,-460.0,0.00019786,2]
[371643263,1752378633473,-460.0,0.00019787,2]
[371643265,1752378633482,-460.0,0.00019787,2]
[371643266,1752378633492,-301.60398194,0.00019787,2]
[371643269,1752378633503,-464.38507739,0.00019787,2]
[371643271,1752378633514,-587.62302464,0.00019787,2]
[371643272,1752378633523,-460.0,0.00019787,2]
[371643274,1752378633533,-460.0,0.00019787,2]
[371643277,1752378633543,-465.27115641,0.00019787,2]
[371643279,1752378633554,-460.0,0.00019787,2]
[371643281,1752378633563,-460.0,0.00019787,2]
[371643283,1752378633573,-461.93578747,0.00019787,2]
[371643285,1752378633582,-460.0,0.00019787,2]
[371643287,1752378633592,-461.19963574,0.00019787,2]
[371643289,1752378633601,-461.14011087,0.00019787,2]
[371643291,1752378633611,-460.0,0.00019787,2]
[371643293,1752378633621,-460.0,0.00019787,2]
[371643295,1752378633630,-460.0,0.00019787,2]
[371643297,1752378633639,-460.0,0.00019787,2]
[371643299,1752378633649,-460.0,0.00019787,2]
[371643301,1752378633658,-460.0,0.00019787,2]
[371643303,1752378633668,-460.0,0.00019787,2]
[371643305,1752378633678,-460.0,0.00019787,2]
[371643307,1752378633688,-582.83788174,0.00019787,2]
[371643309,1752378633697,-460.0,0.00019787,2]
[371643311,1752378633707,-460.0,0.00019787,2]
[371643313,1752378633716,-460.0,0.00019787,2]
[371643315,1752378633725,-460.0,0.00019787,2]
[371643316,1752378633736,-460.0,0.00019787,2]
[371643319,1752378633746,-460.0,0.00019787,2]
[371643321,1752378633755,-460.0,0.00019787,2]
[371643322,1752378633765,-460.0,0.00019787,2]
[371643325,1752378633775,-460.0,0.00019787,2]
[371643327,1752378633785,-500.0,0.00019787,2]
[371643329,1752378633796,-500.0,0.00019787,2]
[371643331,1752378633806,-500.0,0.00019787,2]
[371643333,1752378633817,-500.0,0.00019787,2]
[371643335,1752378633826,-500.0,0.00019787,2]
[371643337,1752378633836,-500.0,0.00019787,2]
[371643339,1752378633846,-500.0,0.00019787,2]
[371643341,1752378633856,-500.0,0.00019787,2]
[371643343,1752378633865,-462.32835616,0.00019787,2]
[371643345,1752378633874,-460.0,0.00019787,2]
[371643347,1752378633884,-460.0,0.00019787,2]
[371643349,1752378633894,-460.0,0.00019787,2]
[371643351,1752378633905,-460.0,0.00019787,2]
[371643353,1752378633915,-460.0,0.00019787,2]
[371643355,1752378633925,-460.0,0.00019787,2]
[371643357,1752378633935,-250.57475707,0.00019787,2]
[371643359,1752378633945,-467.69827768,0.00019787,2]
[371643361,1752378633956,-460.0,0.00019787,2]
[371643363,1752378633966,-460.0,0.00019787,2]
[371643365,1752378633976,-460.0,0.00019787,2]
[371643367,1752378633985,-460.0,0.00019787,2]
[371643369,1752378633997,-462.78922694,0.00019787,2]
[371643371,1752378634006,-460.0,0.00019787,2]
[371643373,1752378634017,-506.11,0.00019787,2]
[371643375,1752378634026,-460.0,0.00019787,2]
[371643377,1752378634036,-460.0,0.00019787,2]
[371643379,1752378634047,-460.0,0.00019787,2]
[371643382,1752378634058,-460.0,0.00019787,2]
[371643384,1752378634068,-462.81893099,0.00019787,2]
[371643385,1752378634078,-460.0,0.00019787,2]
[371643387,1752378634087,-460.0,0.00019787,2]
[371643390,1752378634097,-460.0,0.00019787,2]
[371643392,1752378634107,-460.0,0.00019787,2]
[371643393,1752378634116,-460.0,0.00019787,2]
[371643395,1752378634126,-460.0,0.00019787,2]
[371643398,1752378634135,-460.0,0.00019787,2]
[371643399,1752378634145,-460.0,0.00019787,2]
[371643402,1752378634155,-460.0,0.00019787,2]
[371643403,1752378634164,-460.0,0.00019787,2]
[371643406,1752378634174,-460.0,0.00019787,2]
[371643407,1752378634183,-460.0,0.00019787,2]
[371643410,1752378634193,-460.0,0.00019787,2]
[371643412,1752378634203,-460.0,0.00019787,2]
[371643414,1752378634213,-441.36906242,0.00019787,2]
[371643416,1752378634223,-460.0,0.00019787,2]
[371643418,1752378634232,-460.0,0.00019787,2]
[371643420,1752378634242,-460.0,0.00019787,2]
[371643422,1752378634252,-460.0,0.00019787,2]
[371643424,1752378634261,-460.0,0.00019787,2]
[371643426,1752378634271,-548.41,0.00019787,2]
[371643428,1752378634280,-495.12,0.00019787,2]
[371643429,1752378634290,-460.0,0.00019787,2]
[371643432,1752378634300,-460.0,0.00019787,2]
[371643434,1752378634310,-460.0,0.00019787,2]
[371643436,1752378634321,-460.0,0.00019787,2]
[371643438,1752378634331,-460.0,0.00019787,2]
[371643440,1752378634341,-1305.16,0.00019787,2]
[371643441,1752378634351,-199.78614435,0.00019787,2]
[371643444,1752378634366,-260.21385565,0.00019787,2]
[371643446,1752378634375,-460.0,0.00019787,2]
[371643448,1752378634385,-460.0,0.00019787,2]
[371643450,1752378634395,-460.0,0.00019787,2]
[371643452,1752378634405,-460.0,0.00019787,2]
[371643454,1752378634415,-460.0,0.00019787,2]
[371643456,1752378634424,-460.0,0.00019787,2]
[371643458,1752378634434,-460.0,0.00019787,2]
[371643460,1752378634444,-504.52092789,0.00019787,2]
[371643462,1752378634456,-56360.22687638,0.00019788,2]
[371643464,1752378634469,-255.57243791,0.00019788,2]
[371643466,1752378634481,-10050.49865991,0.00019788,2]
[371643553,1752378639123,-166.0,0.00018786,2]
[371643554,1752378639133,-460.0,0.00019786,2]
[371643555,1752378639142,-1581.55940084,0.00019788,2]
[371643556,1752378639154,-4400.17156147,0.00019788,2]
[371643558,1752378639227,-3288.74031647,0.00019788,2]
[371643973,1752378643887,-460.0,0.00019785,2]
[371643974,1752378643896,-165.94352697,0.00019787,2]
[371643975,1752378643906,-461.94570617,0.00019787,2]
[371643976,1752378643915,-460.0,0.00019787,2]
[371643977,1752378643924,-2303.80774149,0.00019788,2]
[371643978,1752378643935,-2499.1884752,0.00019788,2]
[371644014,1752378646909,-460.0,0.00019786,2]
[371644015,1752378646919,-12.95933375,0.00019787,2]
[371644021,1752379034666,1005.744,0.00027397,120]
[371644022,1752379054216,7319.173697,0.0001631,2]
[371644023,1752379054247,2680.826303,0.0001631,2]
[371644024,1752379066313,7319.173697,0.0001631,2]
[371644025,1752379066345,2680.826303,0.0001631,2]
[371644027,1752379382506,340.795859,0.00013699,2]
[371644028,1752379503102,6978.377838,0.00016,2]
[371644029,1752379503134,1507.27635228,0.00016,2]
[371644068,1752379763807,774.20783559,0.00015952,2]
[371644426,1752379841033,-774.20783559,0.00016412,2]
[371644428,1752379841044,-50.25809016,0.00016497,2]
[371658008,1752380406802,770.37764285,0.00015801,2]
[371658009,1752380407138,770.37764285,0.00016156,2]
[371658010,1752380407959,770.37764285,0.00016301,2]
[371658011,1752380432050,5000.0,0.0001631,2]
[371658012,1752380447714,407.38288358,0.0001631,2]
[371658013,1752380447746,445.49723128,0.0001631,2]
[371658014,1752380481070,5000.0,0.0001631,2]
[371658015,1752380495935,364.660406,0.00013699,2]
[371658016,1752380496894,1859.62818237,0.0001631,2]
[371658018,1752380703228,670.0,0.0001601,2]
[371658044,1752380919076,1279.47915132,0.00025,60]
[371658058,1752381003102,670.0,0.0001601,2]
[371658075,1752381032154,-776.35948408,0.0001643,2]
[371658076,1752381032164,-166.0,0.00017191,2]
[371658077,1752381032174,-631.1598582,0.00017197,2]
[371658079,1752381032183,-193.54,0.00017997,2]
[371658080,1752381032193,-525.11524442,0.00018096,2]
[371658083,1752381032203,-300.0,0.00018172,2]
[371658085,1752381032212,-501.78868786,0.00018173,2]
[371658087,1752381032222,-605.21462626,0.00018173,2]
[371658088,1752381032232,-500.43412412,0.00018173,2]
[371658089,1752381032242,-500.98194922,0.00018173,2]
[371658090,1752381032251,-460.0,0.00018195,2]
[371658091,1752381032261,-460.0,0.00018195,2]
[371658094,1752381032270,-460.0,0.00018195,2]
[371658096,1752381032280,-462.40561897,0.00018195,2]
[371658099,1752381032290,-460.0,0.00018195,2]
[371658100,1752381032303,-460.0,0.00018195,2]
[371658101,1752381032313,-460.0,0.00018195,2]
[371658102,1752381032323,-2064.42867423,0.00018196,2]
[371658103,1752381032332,-465.84386118,0.00018196,2]
[371658104,1752381032342,-353.62368527,0.00018196,2]
[371658105,1752381032353,-461.45727006,0.00018196,2]
[371658106,1752381032364,-469.57988619,0.00018196,2]
[371658107,1752381032376,-460.0,0.00018196,2]
[371658108,1752381032386,-461.35707375,0.00018196,2]
[371658109,1752381032395,-460.0,0.00018196,2]
[371658110,1752381032405,-460.0,0.00018196,2]
[371658111,1752381032414,-461.8855382,0.00018196,2]
[371658112,1752381032424,-460.0,0.00018196,2]
[371658113,1752381032433,-460.69411909,0.00018196,2]
[371658114,1752381032444,-460.0,0.00018196,2]
[371658115,1752381032454,-483.43803783,0.00018196,2]
[371658116,1752381032463,-521.72386621,0.00018196,2]
[371658117,1752381032473,-1159.48,0.00018196,2]
[371658118,1752381032482,-460.0,0.00018196,2]
[371658119,1752381032491,-462.58607231,0.00018196,2]
[371658120,1752381032501,-460.0,0.00018196,2]
[371658121,1752381032511,-461.93026801,0.00018196,2]
[371658122,1752381032520,-460.0,0.00018196,2]
[371658123,1752381032530,-460.0,0.00018196,2]
[371658124,1752381032540,-460.0,0.00018196,2]
[371658125,1752381032551,-460.0,0.00018196,2]
[371658126,1752381032561,-460.0,0.00018196,2]
[371658127,1752381032571,-460.0,0.00018196,2]
[371658128,1752381032581,-460.0,0.00018196,2]
[371658129,1752381032590,-460.0,0.00018196,2]
[371658130,1752381032599,-1032.33,0.00018196,2]
[371658131,1752381032609,-460.0,0.00018196,2]
[371658132,1752381032618,-460.0,0.00018196,2]
[371658133,1752381032627,-598.66,0.00018196,2]
[371658134,1752381032638,-460.0,0.00018196,2]
[371658135,1752381032647,-460.0,0.00018196,2]
[371658136,1752381032657,-460.0,0.00018196,2]
[371658137,1752381032666,-460.0,0.00018196,2]
[371658138,1752381032675,-460.0,0.00018196,2]
[371658139,1752381032685,-460.0,0.00018196,2]
[371658140,1752381032695,-460.0,0.00018196,2]
[371658141,1752381032704,-460.0,0.00018196,2]
[371658142,1752381032714,-460.0,0.00018196,2]
[371658143,1752381032724,-460.0,0.00018196,2]
[371658144,1752381032733,-460.0,0.00018196,2]
[371658145,1752381032742,-525.9,0.00018196,2]
[371658146,1752381032752,-460.0,0.00018196,2]
[371658147,1752381032761,-460.0,0.00018196,2]
[371658148,1752381032771,-460.0,0.00018196,2]
[371658150,1752381032780,-460.0,0.00018196,2]
[371658152,1752381032789,-279.77267119,0.00018196,2]
[371658153,1752381032799,-460.0,0.00018196,2]
[371658154,1752381032809,-460.0,0.00018196,2]
[371658155,1752381032819,-460.0,0.00018196,2]
[371658156,1752381032828,-464.90942237,0.00018196,2]
[371658157,1752381032837,-460.0,0.00018196,2]
[371658158,1752381032848,-460.0,0.00018196,2]
[371658159,1752381032858,-460.0,0.00018196,2]
[371658160,1752381032867,-460.0,0.00018196,2]
[371658161,1752381032877,-460.0,0.00018196,2]
[371658162,1752381032888,-460.0,0.00018196,2]
[371658163,1752381032898,-569.0,0.00018196,2]
[371658164,1752381032907,-460.0,0.00018196,2]
[371658165,1752381032917,-460.0,0.00018196,2]
[371658166,1752381032927,-460.0,0.00018196,2]
[371658167,1752381032937,-460.0,0.00018197,2]
[371658168,1752381032946,-460.0,0.00018197,2]
[371658169,1752381032956,-460.0,0.00018197,2]
[371658170,1752381032965,-460.0,0.00018197,2]
[371658171,1752381032975,-460.0,0.00018197,2]
[371658172,1752381032985,-460.0,0.00018197,2]
[371658173,1752381032994,-462.3911008,0.00018197,2]
[371658174,1752381033004,-476.97236062,0.00018197,2]
[371658175,1752381033013,-460.0,0.00018197,2]
[371658176,1752381033022,-461.9848841,0.00018197,2]
[371658177,1752381033032,-460.0,0.00018197,2]
[371658178,1752381033041,-460.0,0.00018197,2]
[371658179,1752381033050,-460.0,0.00018197,2]
[371658180,1752381033060,-460.0,0.00018197,2]
[371658181,1752381033069,-460.0,0.00018197,2]
[371658182,1752381033078,-462.67969842,0.00018197,2]
[371658183,1752381033089,-460.0,0.00018197,2]
[371658184,1752381033098,-433.19690921,0.00018197,2]
[371658185,1752381033108,-460.0,0.00018197,2]
[371658186,1752381033117,-461.42830635,0.00018197,2]
[371658187,1752381033126,-460.0,0.00018197,2]
[371658188,1752381033136,-460.0,0.00018197,2]
[371658189,1752381033146,-478.81036062,0.00018197,2]
[371658190,1752381033155,-529.90452754,0.00018197,2]
[371658191,1752381033165,-460.0,0.00018197,2]
[371658192,1752381033175,-460.0,0.00018197,2]
[371658193,1752381033184,-460.0,0.00018197,2]
[371658194,1752381033194,-462.18731209,0.00018197,2]
[371658195,1752381033203,-460.0,0.00018197,2]
[371658196,1752381033212,-504.42964933,0.00018197,2]
[371658197,1752381033221,-460.0,0.00018197,2]
[371658198,1752381033230,-460.0,0.00018197,2]
[371658199,1752381033239,-602.61215385,0.00018197,2]
[371658200,1752381033249,-460.0,0.00018197,2]
[371658201,1752381033259,-460.0,0.00018197,2]
[371658202,1752381033268,-460.0,0.00018197,2]
[371658203,1752381033278,-460.0,0.00018197,2]
[371658204,1752381033288,-181.83475204,0.00018197,2]
[371658205,1752381033300,-460.0,0.00018197,2]
[371658206,1752381033310,-460.0,0.00018197,2]
[371658207,1752381033320,-462.47478353,0.00018197,2]
[371658208,1752381033329,-460.0,0.00018197,2]
[371658209,1752381033339,-460.0,0.00018197,2]
[371658210,1752381033348,-460.0,0.00018197,2]
[371658211,1752381033359,-461.12253774,0.00018197,2]
[371658212,1752381033369,-460.0,0.00018197,2]
[371658213,1752381033379,-460.0,0.00018197,2]
[371658214,1752381033390,-733.22,0.00018197,2]
[371658215,1752381033400,-460.0,0.00018197,2]
[371658216,1752381033410,-460.0,0.00018197,2]
[371658217,1752381033420,-460.0,0.00018197,2]
[371658218,1752381033430,-460.0,0.00018197,2]
[371658219,1752381033440,-460.0,0.00018197,2]
[371658220,1752381033449,-460.0,0.00018197,2]
[371658221,1752381033459,-460.0,0.00018197,2]
[371658222,1752381033469,-460.0,0.00018197,2]
[371658223,1752381033478,-460.0,0.00018197,2]
[371658224,1752381033488,-460.0,0.00018197,2]
[371658225,1752381033498,-460.0,0.00018197,2]
[371658226,1752381033508,-460.0,0.00018197,2]
[371658227,1752381033517,-460.0,0.00018197,2]
[371658228,1752381033527,-460.0,0.00018197,2]
[371658229,1752381033537,-460.0,0.00018197,2]
[371658230,1752381033547,-460.0,0.00018197,2]
[371658231,1752381033556,-464.58661392,0.00018197,2]
[371658232,1752381033566,-460.0,0.00018197,2]
[371658233,1752381033576,-460.0,0.00018197,2]
[371658234,1752381033585,-460.0,0.00018197,2]
[371658235,1752381033595,-460.0,0.00018197,2]
[371658236,1752381033606,-460.0,0.00018197,2]
[371658237,1752381033615,-460.0,0.00018197,2]
[371658238,1752381033625,-460.0,0.00018197,2]
[371658239,1752381033636,-460.0,0.00018197,2]
[371658240,1752381033645,-460.0,0.00018197,2]
[371658241,1752381033655,-460.0,0.00018197,2]
[371658242,1752381033664,-460.0,0.00018197,2]
[371658243,1752381033675,-460.0,0.00018197,2]
[371658244,1752381033684,-465.6919523,0.00018197,2]
[371658245,1752381033694,-478.15081322,0.00018197,2]
[371658246,1752381033706,-460.0,0.00018197,2]
[371658247,1752381033716,-460.0,0.00018197,2]
[371658248,1752381033726,-460.0,0.00018197,2]